{"text_format":"1","workbook":"xlsx","n_sheets":8,"sheets":["Fill Handle","Absolute Reference","Paste Special","Clipboard","DATE","VBA","LSI 1","LSI 2"],"not_rendered":{"charts":0,"images":0,"macros":1,"external_links":0,"defined_names":0,"comments":0,"pivot_tables":0},"unopened":[],"bounds":{"document_bytes":16777216,"sheet_cells":100000,"rows_first":2000,"rows_last":500,"rows_between":2000,"halvings":0,"cell_chars":16384,"cell_head_chars":4096},"cells_cut":0,"cells_raw":0,"read":"whole","date_system":"1900"}

{"sheet":"Fill Handle","index":0,"n_rows":10,"n_cols":10,"rows_kept":10,"cut":false,"hidden":false,"merged":[[1,8,1,9],[1,1,1,2]]}
[]
[null,"Using Fill Handle",null,null,null,null,null,null,"Practice Yourself"]
[]
[null,"Sales Person","Joining Date",null,null,null,null,null,"Sales Person","Joining Date"]
[null,"Daniel Smith","2022-01-20",null,null,null,null,null,"Daniel Smith","2022-01-20"]
[null,"Paul Brown","2022-01-21",null,null,null,null,null,"Paul Brown"]
[null,"George Garcia","2022-01-22",null,null,null,null,null,"George Garcia"]
[null,"Steven Williams","2022-01-23",null,null,null,null,null,"Steven Williams"]
[null,"Bill Jones","2022-01-24",null,null,null,null,null,"Bill Jones"]
[null,"Bernard Davis","2022-01-25",null,null,null,null,null,"Bernard Davis"]

{"sheet":"Absolute Reference","index":1,"n_rows":10,"n_cols":10,"rows_kept":10,"cut":false,"hidden":false,"merged":[[1,1,1,2],[1,8,1,9]]}
[]
[null,"Using Absolute Reference",null,null,null,null,null,null,"Practice Yourself"]
[]
[null,"Sales Person","Joining Date",null,null,null,null,null,"Sales Person","Joining Date"]
[null,"Daniel Smith","2022-01-20",null,null,null,null,null,"Daniel Smith","2022-01-20"]
[null,"Paul Brown",{"$f":"$C$5","v":"2022-01-20"},null,null,null,null,null,"Paul Brown",{"$f":"$C$5","v":"2022-01-20"}]
[null,"George Garcia",{"$f":"$C$5","v":"2022-01-20"},null,null,null,null,null,"George Garcia",{"$f":"$C$5","v":"2022-01-20"}]
[null,"Steven Williams","2022-01-20",null,null,null,null,null,"Steven Williams","2022-01-20"]
[null,"Bill Jones","2022-01-20",null,null,null,null,null,"Bill Jones","2022-01-20"]
[null,"Bernard Davis","2022-01-20",null,null,null,null,null,"Bernard Davis","2022-01-20"]

{"sheet":"Paste Special","index":2,"n_rows":10,"n_cols":10,"rows_kept":10,"cut":false,"hidden":false,"merged":[[1,1,1,2],[1,8,1,9]]}
[]
[null,"Using Paste Special ",null,null,null,null,null,null,"Practice Yourself"]
[]
[null,"Sales Person","Joining Date",null,null,null,null,null,"Sales Person","Joining Date"]
[null,"Daniel Smith","2022-01-20",null,null,null,null,null,"Daniel Smith","2022-01-20"]
[null,"Paul Brown","2022-01-20",null,null,null,null,null,"Paul Brown",{"$f":"$C$5","v":"2022-01-20"}]
[null,"George Garcia","2022-01-20",null,null,null,null,null,"George Garcia","2022-01-20"]
[null,"Steven Williams","2022-01-20",null,null,null,null,null,"Steven Williams","2022-01-20"]
[null,"Bill Jones","2022-01-20",null,null,null,null,null,"Bill Jones","2022-01-20"]
[null,"Bernard Davis","2022-01-20",null,null,null,null,null,"Bernard Davis","2022-01-20"]

{"sheet":"Clipboard","index":3,"n_rows":10,"n_cols":10,"rows_kept":10,"cut":false,"hidden":false,"merged":[[1,1,1,2],[1,8,1,9]]}
[]
[null,"Using Clipboard",null,null,null,null,null,null,"Practice Yourself"]
[]
[null,"Sales Person","Joining Date",null,null,null,null,null,"Sales Person","Joining Date"]
[null,"Daniel Smith","2022-01-20",null,null,null,null,null,"Daniel Smith","2022-01-20"]
[null,"Paul Brown","2022-01-20",null,null,null,null,null,"Paul Brown"]
[null,"George Garcia","2022-01-20",null,null,null,null,null,"George Garcia"]
[null,"Steven Williams","2022-01-20",null,null,null,null,null,"Steven Williams"]
[null,"Bill Jones","2022-01-20",null,null,null,null,null,"Bill Jones"]
[null,"Bernard Davis","2022-01-20",null,null,null,null,null,"Bernard Davis"]

{"sheet":"DATE","index":4,"n_rows":10,"n_cols":10,"rows_kept":10,"cut":false,"hidden":false,"merged":[[1,1,1,2],[1,8,1,9]]}
[]
[null,"Using DATE Function",null,null,null,null,null,null,"Practice Yourself"]
[]
[null,"Sales Person","Joining Date",null,null,null,null,null,"Sales Person","Joining Date"]
[null,"Daniel Smith",{"$f":"DATE(2022,1,20)","v":"2022-01-20"},null,null,null,null,null,"Daniel Smith",{"$f":"DATE(2022,1,20)","v":"2022-01-20"}]
[null,"Paul Brown",{"$f":"DATE(2022,1,20)","v":"2022-01-20"},null,null,null,null,null,"Paul Brown",{"$f":"DATE(2022,1,20)","v":"2022-01-20"}]
[null,"George Garcia","2022-01-20",null,null,null,null,null,"George Garcia","2022-01-20"]
[null,"Steven Williams","2022-01-20",null,null,null,null,null,"Steven Williams","2022-01-20"]
[null,"Bill Jones","2022-01-20",null,null,null,null,null,"Bill Jones","2022-01-20"]
[null,"Bernard Davis","2022-01-20",null,null,null,null,null,"Bernard Davis","2022-01-20"]

{"sheet":"VBA","index":5,"n_rows":10,"n_cols":10,"rows_kept":10,"cut":false,"hidden":false,"merged":[[1,1,1,2],[1,8,1,9]]}
[]
[null,"Using VBA Code",null,null,null,null,null,null,"Practice Yourself"]
[]
[null,"Sales Person","Joining Date",null,null,null,null,null,"Sales Person","Joining Date"]
[null,"Daniel Smith","2022-01-20",null,null,null,null,null,"Daniel Smith","2022-01-20"]
[null,"Paul Brown","2022-01-20",null,null,null,null,null,"Paul Brown"]
[null,"George Garcia","2022-01-20",null,null,null,null,null,"George Garcia"]
[null,"Steven Williams","2022-01-20",null,null,null,null,null,"Steven Williams"]
[null,"Bill Jones","2022-01-20",null,null,null,null,null,"Bill Jones"]
[null,"Bernard Davis","2022-01-20",null,null,null,null,null,"Bernard Davis"]

{"sheet":"LSI 1","index":6,"n_rows":10,"n_cols":10,"rows_kept":10,"cut":false,"hidden":false,"merged":[[1,1,1,2],[1,8,1,9]]}
[]
[null,"Inserting Dates Automatically",null,null,null,null,null,null,"Practice Yourself"]
[]
[null,"Sales Person","Joining Date",null,null,null,null,null,"Sales Person","Joining Date"]
[null,"Daniel Smith","2022-01-20",null,null,null,null,null,"Daniel Smith","2022-01-20"]
[null,"Paul Brown","2022-01-21",null,null,null,null,null,"Paul Brown"]
[null,"George Garcia","2022-01-22",null,null,null,null,null,"George Garcia"]
[null,"Steven Williams","2022-01-23",null,null,null,null,null,"Steven Williams"]
[null,"Bill Jones","2022-01-24",null,null,null,null,null,"Bill Jones"]
[null,"Bernard Davis","2022-01-25",null,null,null,null,null,"Bernard Davis"]

{"sheet":"LSI 2","index":7,"n_rows":10,"n_cols":10,"rows_kept":10,"cut":false,"hidden":false,"merged":[[1,1,1,2],[1,8,1,9]]}
[]
[null,"Auto Filling Dates Using Shortcut",null,null,null,null,null,null,"Practice Yourself"]
[]
[null,"Sales Person","Joining Date",null,null,null,null,null,"Sales Person","Joining Date"]
[null,"Daniel Smith","2022-01-20",null,null,null,null,null,"Daniel Smith","2022-01-20"]
[null,"Paul Brown","2022-01-20",null,null,null,null,null,"Paul Brown"]
[null,"George Garcia","2022-01-20",null,null,null,null,null,"George Garcia"]
[null,"Steven Williams","2022-01-20",null,null,null,null,null,"Steven Williams"]
[null,"Bill Jones","2022-01-20",null,null,null,null,null,"Bill Jones"]
[null,"Bernard Davis","2022-01-20",null,null,null,null,null,"Bernard Davis"]